bitfinex/quotes_ETHUSD_20240702
["timestamp","ask_amount","ask_price","bid_price","bid_amount"]
[1719879214863,6.01578,3442.0,3441.4,2.90578]
[1719879215036,0.11911898,3441.9,3441.6,2.90556]
[1719879215244,0.11911898,3441.9,3441.8,8.1911]
[1719879215569,0.5,3442.1,3442.0,2.90528]
[1719879215784,7.16328412,3442.2,3442.0,2.90528]
[1719879215986,7.16328412,3442.2,3442.1,2.9052]
[1719879217638,7.16328412,3442.2,3442.1,8.8104]
[1719879217842,7.16328412,3442.2,3442.1,11.2616]
[1719879218038,7.16328412,3442.2,3442.1,12.46026]
[1719879219592,7.16328412,3442.8,3442.5,2.90482]
[1719879219796,3.5819,3443.1,3442.5,2.90482]
[1719879219960,0.50280863,3443.0,3442.5,2.90482]
[1719879220153,0.50281005,3442.9,3442.5,2.90482]
[1719879220353,0.725,3442.9,3442.5,2.90482]
[1719879222061,3.0819,3443.1,3442.5,3.485803]
[1719879222365,1.225,3443.1,3442.5,3.485803]
[1719879223402,1.225,3443.1,3442.5,2.90482]
[1719879224856,0.5,3443.1,3442.6,2.90476]
[1719879225062,0.11939558,3443.0,3442.6,2.90476]
[1719879225562,0.11939558,3443.0,3442.7,2.90467]
[1719879225758,0.11939558,3443.0,3442.8,0.880943]
[1719879225962,10.17998412,3443.3,3442.8,0.880943]
[1719879226174,0.11942865,3442.9,3442.6,2.90476]
[1719879226369,0.725,3443.5,3442.8,5.20261]
[1719879226574,0.5,3443.4,3442.8,5.20261]
[1719879226881,0.725,3443.5,3442.8,5.20261]
[1719879227094,1.225,3443.5,3442.8,5.20261]
[1719879227391,1.225,3443.5,3442.9,2.90452]
[1719879227562,0.5,3443.5,3442.9,2.90452]
[1719879227761,1.225,3443.5,3442.9,2.90452]
[1719879228867,4.12902,3443.5,3442.9,2.90452]
[1719879230200,0.725,3443.3,3442.8,2.298]
[1719879230713,0.725,3443.3,3442.8,2.9046]
[1719879232597,3.62902,3443.5,3442.9,0.42791616]
[1719879232804,4.12902,3443.5,3442.8,2.9046]
[1719879233394,4.12902,3443.5,3442.9,2.90452]
[1719879235713,0.5,3443.5,3442.9,2.90444]
[1719879235879,0.5,3443.5,3443.2,2.90426]
[1719879236085,7.16328412,3443.7,3443.2,3.62926]
[1719879236264,0.5,3443.6,3443.2,4.81457758]
[1719879236766,7.16328412,3443.7,3443.3,2.90415]
[1719879236967,7.16328412,3443.7,3443.5,2.90395]
[1719879237207,0.5,3443.9,3443.5,2.90395]
[1719879237515,7.16328412,3444.0,3443.6,2.90387]
[1719879239592,7.16328412,3444.0,3443.5,2.90395]
[1719879240005,0.12018598,3443.9,3443.5,2.90395]
[1719879243192,3.29028598,3443.9,3443.4,2.90406]
[1719879244101,3.29028598,3443.9,3443.5,2.90401]
[1719879245507,0.84518598,3443.9,3443.5,2.90401]
[1719879245704,0.12018598,3443.9,3443.5,2.90401]
[1719879247445,0.12018598,3443.9,3443.5,3.45030006]
[1719879248843,0.12018598,3443.9,3443.6,2.90392]
[1719879253344,0.84518598,3443.9,3443.6,2.90392]
[1719879254124,0.12018598,3443.9,3443.6,2.90392]
[1719879260540,0.12018598,3443.9,3443.6,5.22882]
[1719879264855,0.12018598,3443.9,3443.7,2.90385]
[1719879265459,0.50262677,3443.8,3443.7,2.90385]
[1719879265657,0.12033619,3443.8,3443.7,2.90385]
[1719879265854,7.16328412,3444.0,3443.7,2.90385]
[1719879266186,0.62296406,3443.9,3443.7,2.90385]
[1719879266395,0.50262787,3443.8,3443.7,2.90385]
[1719879266548,0.50262787,3443.8,3443.5,2.90395]
[1719879267079,0.12033619,3443.7,3443.5,2.90395]
[1719879267276,2.3679,3443.9,3443.5,2.90395]
[1719879267477,0.12033619,3443.8,3443.5,2.90395]
[1719879268789,0.50264824,3443.7,3443.1,2.90433]
[1719879269097,1.34802008,3443.6,3443.1,2.90433]
[1719879269267,0.725,3443.4,3443.1,2.90433]
[1719879269683,0.12035122,3443.3,3443.1,2.90433]
[1719879269898,0.725,3443.6,3443.1,2.90433]
[1719879270194,3.2173,3443.4,3442.8,3.0]
[1719879270384,0.50270936,3443.3,3442.8,3.0]
[1719879270586,0.62301252,3443.3,3442.8,3.0]
[1719879270795,0.725,3443.2,3442.8,3.0]
[1719879271367,0.12030316,3443.1,3442.8,3.0]
[1719879272197,0.725,3443.0,3442.3,5.494]
[1719879272403,0.725,3443.0,3442.3,6.453774]
[1719879272711,0.11996969,3442.9,3442.3,6.453774]
[1719879273598,0.11996969,3442.9,3442.4,2.90491]
[1719879275385,0.11996969,3442.9,3442.4,2.96300287]
[1719879275581,0.725,3443.2,3442.5,2.90485]
[1719879275781,0.11989457,3442.8,3442.5,2.90485]
[1719879276096,0.11989457,3442.7,3442.5,2.90485]
[1719879276276,7.88828412,3443.2,3442.5,2.90485]
[1719879276481,0.11989457,3443.1,3442.5,2.90485]
[1719879281539,3.02426457,3443.1,3442.5,2.90485]
[1719879281744,3.74926457,3443.1,3442.5,2.90485]
[1719879283563,0.84489457,3443.1,3442.5,2.90485]
[1719879284541,0.11989457,3443.1,3442.8,5.38128]
[1719879285523,0.725,3443.5,3442.8,5.38128]
[1719879285731,0.11983146,3443.4,3442.9,2.9045]
[1719879288619,0.11983146,3443.4,3443.0,2.90444]
[1719879288815,0.11983146,3443.4,3443.0,3.74836263]
[1719879289058,7.88828412,3443.6,3443.1,2.9043]
[1719879289215,0.11996969,3443.3,3443.1,2.9043]
[1719879289417,7.88828412,3443.6,3443.1,2.9043]
[1719879289933,0.11996969,3443.5,3443.1,2.9043]
[1719879290356,0.11996969,3443.5,3443.0,3.74836263]
[1719879291370,2.39406969,3443.5,3443.0,3.74836263]
[1719879292555,0.725,3443.4,3442.8,5.3813]
[1719879293032,0.11996969,3443.3,3442.8,5.3813]
[1719879294872,5.90312,3443.5,3442.8,5.3813]
[1719879295075,0.62271058,3443.4,3442.8,5.3813]
[1719879295381,0.11996969,3443.4,3442.8,5.3813]
[1719879298952,0.11996969,3443.4,3442.9,2.90452]
[1719879299641,0.50272848,3443.3,3442.9,2.90452]
[1719879299890,5.90312,3443.5,3442.9,2.90452]
[1719879300100,0.62269812,3443.4,3442.9,2.90452]
[1719879300261,0.50272843,3443.3,3442.9,2.90452]
[1719879300466,0.11996669,3443.2,3443.0,1.2068976]
[1719879300777,7.16328412,3443.6,3443.0,1.2068976]
[1719879300982,0.11996669,3443.1,3442.9,2.90452]
[1719879301278,0.11996669,3443.0,3442.9,2.90452]
[1719879301474,10.06722412,3443.6,3442.9,2.90452]
[1719879301675,0.62268472,3443.5,3442.9,2.90452]
[1719879302053,0.50271803,3443.4,3442.9,2.90452]
[1719879302249,0.50271803,3443.4,3443.0,0.05808601]
[1719879302472,0.11996669,3443.3,3443.2,2.90426]
[1719879302814,7.16328412,3443.6,3443.2,2.90426]
[1719879303118,5.22989,3443.9,3443.2,2.90426]
[1719879303119,0.725,3443.8,3443.2,2.90426]
[1719879303288,0.62270274,3443.7,3443.2,2.90426]
[1719879303485,0.62270274,3443.7,3443.0,0.05808163]
[1719879303486,0.12002678,3443.7,3443.0,0.05808163]
[1719879303689,0.50268996,3443.6,3443.0,0.05808163]
[1719879303905,3.62877,3443.8,3443.0,0.05808163]
[1719879303906,0.12012292,3443.5,3443.0,0.05808163]
[1719879304076,0.725,3443.6,3442.9,4.1113876]
[1719879304276,0.12012292,3443.5,3442.9,4.1113876]
[1719879304522,0.12012292,3443.5,3443.0,0.95880876]
[1719879305323,0.12012292,3443.5,3443.1,2.90435]
[1719879306247,0.12012292,3443.5,3443.0,0.95880876]
[1719879306248,0.12012292,3443.5,3443.2,2.90427]
[1719879306595,7.16328412,3444.0,3443.3,2.51608127]
[1719879306795,0.12010189,3443.4,3443.3,9.04445027]
[1719879307040,7.16328412,3444.0,3443.5,2.90398]
[1719879307337,2.90294,3444.8,3443.8,2.90376]
[1719879307338,9.58928412,3444.4,3443.8,2.90376]
[1719879307655,0.5,3444.3,3444.0,2.90354]
[1719879307796,7.16328412,3444.4,3444.0,2.90354]
[1719879308441,7.16328412,3444.4,3444.1,2.90349]
[1719879308624,7.16328412,3444.4,3444.0,2.90354]
[1719879310305,7.16328412,3444.4,3444.1,2.9035]
[1719879311433,7.88828412,3444.4,3443.9,2.90363]
[1719879312032,0.725,3444.4,3443.9,2.90363]
[1719879312537,0.725,3444.0,3443.5,3.0]
[1719879313213,0.725,3444.2,3443.5,5.90402]
[1719879315139,0.12043829,3444.1,3443.7,2.90383]
[1719879315311,0.725,3444.4,3443.8,2.90368]
[1719879315640,0.12038123,3444.3,3443.8,2.90368]
[1719879316142,0.725,3444.0,3443.5,5.90399]
[1719879316442,0.1206095,3443.9,3443.5,5.90399]
[1719879316616,0.1206095,3443.9,3443.5,3.0]
[1719879318616,0.1206095,3443.9,3443.2,2.90421]
[1719879318817,0.725,3443.8,3443.2,2.90421]
[1719879319223,0.725,3443.6,3443.2,2.90421]
[1719879319844,0.12047736,3443.5,3443.2,2.90421]
[1719879320351,0.12047736,3443.5,3443.1,3.0]
[1719879320535,0.725,3443.8,3443.1,3.0]
[1719879320712,0.12047736,3443.7,3443.1,3.0]
[1719879321150,0.725,3443.6,3443.1,3.0]
[1719879321565,0.12047736,3443.5,3443.1,3.0]
[1719879322545,0.12047736,3443.5,3443.1,3.0]
[1719879323171,0.12047736,3443.5,3442.8,8.16589]
[1719879323172,0.725,3443.2,3442.7,2.90467]
[1719879323530,0.12037223,3443.1,3442.7,2.90467]
[1719879323930,0.725,3443.0,3442.6,3.0]
[1719879324165,0.12030316,3442.9,3442.6,3.0]
[1719879324467,0.725,3442.8,3442.3,5.90497]
[1719879324634,0.725,3442.8,3442.4,4.014132]
[1719879324835,0.120201,3442.7,3442.4,4.014132]
[1719879325270,0.725,3443.0,3442.4,4.014132]
[1719879325432,0.120201,3442.6,3442.4,2.90493]
[1719879325833,0.725,3443.0,3442.4,2.90493]
[1719879326043,0.120201,3442.5,3442.4,2.90493]
[1719879326251,0.725,3443.0,3442.4,2.90493]
[1719879326455,0.725,3443.0,3442.3,3.0]
[1719879326456,7.16328412,3443.1,3442.5,2.90486]
[1719879326658,7.16328412,3443.1,3442.5,3.785846]
[1719879328992,7.16328412,3443.1,3442.6,2.90478]
[1719879329857,3.62929,3443.2,3442.6,2.90478]
[1719879330379,0.12015893,3443.1,3442.6,2.90478]
[1719879331372,0.12015893,3443.1,3442.7,2.26]
[1719879331576,7.88828412,3443.5,3442.9,2.90449]
[1719879331760,0.120201,3443.4,3442.9,2.90449]
[1719879332494,0.120201,3443.4,3442.9,2.96257349]
[1719879333648,0.844201,3443.4,3442.9,2.96257349]
[1719879334057,0.844201,3443.4,3442.8,2.90453]
[1719879334555,0.724,3443.2,3442.8,2.90453]
[1719879334752,0.14795175,3443.1,3442.8,2.90453]
[1719879335486,0.14795175,3443.1,3442.9,2.96257397]
[1719879335792,0.724,3443.4,3442.9,2.96257397]
[1719879335958,0.14795175,3443.0,3442.9,2.96257397]
[1719879336152,0.724,3443.4,3442.9,2.90449]
[1719879336358,0.14795175,3443.3,3442.8,4.01146]
[1719879336971,0.14795175,3443.3,3442.9,2.90452]
[1719879338262,0.14795175,3443.3,3442.9,4.18022653]
[1719879339861,0.14795175,3443.3,3443.2,5.38697]
[1719879340301,7.16328412,3443.5,3443.2,5.38697]
[1719879340469,7.16328412,3443.5,3443.3,2.90412]
[1719879340669,7.16328412,3443.5,3443.2,2.4827]
[1719879340670,7.16328412,3444.0,3443.5,2.90401]
[1719879341593,7.16328412,3444.0,3443.5,3.805498]
[1719879343398,7.16328412,3444.0,3443.5,3.86357162]
[1719879344010,7.16328412,3444.0,3443.5,3.805498]
[1719879344866,5.9521,3444.3,3443.5,3.805498]
[1719879345087,0.14797884,3443.9,3443.5,3.805498]
[1719879345310,6.4521,3444.3,3443.6,0.6767742]
[1719879345470,0.14797884,3443.8,3443.5,3.805498]
[1719879345665,6.4521,3444.3,3443.5,3.805498]
[1719879345976,5.9521,3444.3,3443.5,3.805498]
[1719879346290,0.14797884,3444.2,3443.7,2.90384]
[1719879346488,0.87197884,3444.2,3443.7,2.90384]
[1719879346690,0.14797884,3444.2,3443.7,3.5747738]
[1719879346896,0.14797884,3444.2,3443.7,5.8874738]
[1719879347408,0.14825817,3444.1,3443.7,5.8874738]
[1719879347582,10.79056412,3444.4,3443.7,5.8874738]
[1719879347907,0.14825817,3444.3,3443.7,5.8874738]
[1719879348085,0.14825817,3444.3,3443.8,1.26929718]
[1719879348406,0.724,3444.2,3443.8,1.26929718]
[1719879348606,0.14826418,3444.1,3443.8,1.26929718]
[1719879350820,7.16328412,3444.4,3444.1,2.90349]
[1719879351141,7.16328412,3444.4,3444.2,0.5865225]
[1719879351271,3.032,3444.7,3444.2,0.5865225]
[1719879351478,3.032,3444.7,3444.1,2.90349]
[1719879351771,3.032,3444.7,3444.1,2.96155416]
[1719879352597,3.032,3444.7,3444.2,2.90342]
[1719879352777,0.724,3444.7,3444.2,5.39302]
[1719879352972,0.724,3444.7,3444.2,2.90342]
[1719879354312,0.724,3444.7,3444.2,4.03889542]
[1719879357409,0.724,3444.7,3444.0,2.96160416]
[1719879357595,2.3184,3444.4,3444.0,2.90354]
[1719879358683,2.3184,3444.4,3444.1,2.90349]
[1719879358881,0.724,3444.5,3444.1,2.90349]
[1719879359532,0.724,3444.5,3443.9,5.90362]
[1719879359715,0.724,3444.3,3443.9,3.0]
[1719879360082,0.1484113,3444.2,3443.9,3.0]
[1719879360343,0.1484113,3444.2,3443.5,3.0]
[1719879360512,2.90319,3444.5,3443.5,3.0]
[1719879360513,3.1025,3444.1,3443.5,3.0]
[1719879360914,0.1484954,3444.0,3443.5,3.0]
[1719879361121,0.1484954,3444.0,3443.6,0.60407]
[1719879361444,0.1484954,3443.9,3443.7,2.90384]
[1719879361903,0.724,3444.1,3443.5,5.90401]
[1719879362384,0.14844736,3444.0,3443.5,5.90401]
[1719879363027,0.724,3443.9,3443.5,5.90401]
[1719879363266,0.724,3443.9,3443.5,3.0]
[1719879363394,0.1484083,3443.8,3443.5,3.0]
[1719879364943,0.1484083,3443.8,3443.1,5.90433]
[1719879364944,3.142,3443.7,3443.1,2.90433]
[1719879365141,3.142,3443.7,3443.2,1.2315853]
[1719879365342,0.724,3443.5,3443.1,3.0]
[1719879365501,0.724,3443.5,3442.9,5.9045]
[1719879366039,0.14836626,3443.4,3442.9,5.9045]
[1719879366357,0.14836626,3443.4,3442.9,7.086759]
[1719879367328,0.724,3443.2,3442.7,5.19409]
[1719879367513,0.14836626,3443.4,3442.7,2.90469]
[1719879367767,0.724,3443.2,3442.7,2.90469]
[1719879368361,0.14828516,3443.1,3442.7,2.90469]
[1719879368521,0.14828516,3443.1,3442.7,4.023974]
[1719879370119,0.14828516,3443.1,3442.7,1.119284]
[1719879370362,0.724,3443.0,3442.5,3.0]
[1719879370725,0.14786466,3442.9,3442.5,3.0]
[1719879379747,5.32129,3442.7,3442.1,3.0]
[1719879380099,0.87164833,3442.6,3442.1,3.0]
[1719879380275,0.87164833,3442.6,3442.1,3.830654]
[1719879381146,0.87164833,3442.6,3442.0,2.90528]
[1719879381147,0.724,3442.4,3441.7,2.90552]
[1719879381360,0.724,3442.4,3441.7,5.90552]
[1719879381569,0.14751609,3442.3,3441.7,5.90552]
[1719879381750,0.14751609,3442.3,3441.8,2.90545]
[1719879382747,0.14751609,3442.3,3441.9,2.90536]
[1719879383065,0.724,3442.6,3442.0,0.881088]
[1719879383268,3.62879,3442.6,3442.0,0.881088]
[1719879383484,0.1472967,3442.2,3442.0,0.881088]
[1719879383788,3.62879,3442.6,3442.0,0.881088]
[1719879384268,0.1472967,3442.5,3442.0,0.881088]
[1719879386530,0.1472967,3442.5,3442.0,3.786348]
[1719879386715,0.1472967,3442.5,3442.2,5.4459]
[1719879386855,0.1472967,3442.5,3442.3,2.90495]
[1719879387054,7.16328412,3442.9,3442.3,2.90495]
[1719879387300,0.14732374,3442.8,3442.3,2.90495]
[1719879387887,0.14732374,3442.8,3442.4,2.90492]
[1719879388400,0.14732374,3442.8,3442.4,4.09741408]
[1719879390156,0.724,3442.9,3442.4,1.19249408]
[1719879390333,0.724,3442.5,3442.2,3.0]
[1719879390674,0.14745,3442.4,3442.2,3.0]
[1719879391614,2.2734,3442.6,3442.2,3.0]
[1719879391976,0.14746803,3442.5,3442.2,3.0]
[1719879392616,0.724,3442.7,3442.2,3.0]
[1719879392790,0.14731772,3442.6,3442.2,3.0]
[1719879393509,0.14731772,3442.6,3442.2,6.727249]
[1719879393795,0.724,3442.8,3442.2,6.727249]
[1719879394107,0.14734178,3442.7,3442.2,6.727249]
[1719879396577,0.14734178,3442.7,3442.2,5.90507]
[1719879397202,0.14734178,3442.7,3442.2,3.0]
[1719879401389,2.90486,3442.6,3442.2,3.0]
[1719879401779,0.14732374,3442.5,3442.2,3.0]
[1719879402210,0.14730571,3442.4,3442.2,3.0]
[1719879402521,2.90478,3442.6,3442.2,3.0]
[1719879402695,0.14730571,3442.3,3442.2,3.0]
[1719879402891,2.90478,3442.6,3442.2,3.0]
[1719879403405,0.14730571,3442.5,3442.2,3.0]
[1719879405987,0.14730571,3442.5,3442.1,2.3325]
[1719879408228,0.14730571,3442.5,3441.9,2.90533]
[1719879408524,0.14730571,3442.5,3441.9,3.86541398]
[1719879409229,3.05218571,3442.5,3441.9,0.96008398]
[1719879409432,3.62896,3442.4,3441.8,2.3429]
[1719879409641,0.724,3442.2,3441.7,2.90551]
[1719879409797,0.14728467,3442.1,3441.7,2.90551]
[1719879411503,0.724,3441.9,3441.3,3.0]
[1719879411725,0.724,3441.9,3441.3,4.424622]
[1719879411904,0.14723357,3441.8,3441.3,4.424622]
[1719879413044,0.14723357,3441.8,3441.4,0.05810985]
[1719879414633,0.14723357,3441.8,3441.3,1.424622]
[1719879415198,0.724,3441.7,3441.3,1.424622]
[1719879415398,0.14713134,3441.6,3441.3,1.424622]
[1719879416404,0.14713134,3441.6,3441.1,5.90598]
[1719879416727,0.724,3441.5,3441.1,5.90598]
[1719879417141,0.14688478,3441.4,3441.1,5.90598]
[1719879417706,0.14688478,3441.4,3441.1,3.0]
[1719879419636,2.90562,3441.6,3441.1,3.0]
[1719879420061,0.14671637,3441.5,3441.1,3.0]
[1719879422144,0.87071637,3441.5,3441.1,3.0]
[1719879423348,3.77649637,3441.5,3441.1,3.0]
[1719879424816,2.3932,3441.4,3441.1,3.0]
[1719879425017,0.14670735,3441.3,3441.1,3.0]
[1719879429670,0.14670735,3441.3,3440.8,2.90629]
[1719879430228,0.87070735,3441.3,3440.8,2.90629]
[1719879434198,0.724,3441.1,3440.6,5.90644]
[1719879434599,0.14663816,3441.0,3440.6,5.90644]
[1719879436683,0.14663816,3440.9,3440.6,5.90644]
[1719879436888,3.62989,3441.3,3440.7,2.90637]
[1719879437198,0.14663816,3441.2,3440.7,2.90637]
[1719879439281,3.2036,3441.1,3440.2,5.17139]
[1719879439481,3.24123382,3441.0,3440.5,3.0]
[1719879439662,0.14663816,3440.9,3440.5,3.0]
[1719879440414,3.05284816,3440.9,3440.5,3.0]
[1719879441126,3.77684816,3440.9,3440.2,8.17139]
[1719879441698,3.77684816,3440.9,3440.6,3.0]
[1719879442723,3.77684816,3440.9,3440.3,4.180233]
[1719879443222,3.77684816,3440.9,3440.3,1.180233]
[1719879443382,0.724,3440.7,3440.2,3.0]
[1719879443796,0.14625609,3440.6,3440.2,3.0]
[1719879444419,0.724,3440.5,3440.1,2.90686]
[1719879444797,0.14624406,3440.4,3440.1,2.90686]
[1719879445624,3.6304,3440.7,3440.0,3.0]
[1719879446259,0.14618688,3440.6,3440.0,5.9069]
[1719879446415,0.14618688,3440.6,3440.0,7.028031]
[1719879448604,3.63073,3440.3,3439.6,3.0]
[1719879448804,0.724,3440.1,3439.8,3.0]
[1719879449044,0.724,3439.9,3439.4,3.0]
[1719879449347,0.14610262,3439.8,3439.4,3.0]
[1719879450052,3.0697,3439.7,3439.4,3.0]
[1719879450204,0.724,3439.5,3439.4,3.0]
[1719879450409,3.63139,3439.5,3439.4,3.0]
[1719879450721,3.05341135,3439.5,3439.4,3.0]
[1719879451056,0.14602135,3439.5,3439.4,3.0]
[1719879451343,2.90723,3439.7,3439.4,3.0]
[1719879451644,0.14602135,3439.5,3439.4,3.0]
[1719879452147,2.90723,3439.7,3439.4,3.0]
[1719879452305,0.14602135,3439.5,3439.4,3.0]
[1719879452505,2.90723,3439.7,3439.4,3.0]
[1719879452733,0.14602135,3439.6,3439.4,3.0]
[1719879454035,3.63115,3439.8,3439.4,3.0]
[1719879454239,0.14580758,3439.7,3439.4,3.0]
[1719879454468,3.63115,3439.8,3439.4,3.0]
[1719879454773,0.14580758,3439.7,3439.4,3.0]
[1719879455069,0.724,3439.6,3439.1,2.90773]
[1719879455272,0.14580758,3439.5,3439.0,2.462]
[1719879455486,0.14580758,3439.5,3439.0,2.90776]
[1719879456187,0.14580758,3439.5,3439.1,2.9077]
[1719879456713,0.724,3439.6,3439.1,2.9077]
[1719879456901,0.14580155,3439.5,3439.1,2.9077]
[1719879457795,0.14580155,3439.5,3439.0,2.90781]
[1719879458183,2.46000155,3439.5,3438.9,5.90789]
[1719879458352,0.724,3439.4,3438.9,5.90789]
[1719879458856,0.14580155,3439.3,3438.9,5.90789]
[1719879459271,3.63132,3439.6,3438.9,5.90789]
[1719879459475,0.14580155,3439.5,3438.9,5.90789]
[1719879459678,0.14580155,3439.5,3439.0,2.9078]
[1719879459910,0.15049678,3439.5,3439.0,2.9078]
[1719879460251,0.15049678,3439.5,3439.1,2.90766]
[1719879460677,0.15049678,3439.5,3439.2,2.90761]
[1719879461909,0.15049678,3439.5,3439.4,2.90748]
[1719879462355,0.15049678,3439.5,3439.4,5.81496]
[1719879462551,0.15049678,3439.5,3439.4,6.768856]
[1719879464064,0.15049678,3439.5,3439.4,9.241256]
[1719879471596,0.15049678,3439.5,3439.4,6.768856]
[1719879475704,0.15049678,3439.5,3439.4,5.81496]
[1719879484592,0.15049678,3439.5,3439.4,6.53896]
[1719879484797,0.15049678,3439.5,3439.4,11.81794]
[1719879484994,0.15049678,3439.5,3439.4,14.81794]
[1719879485191,0.15049678,3439.5,3439.4,15.36794]
[1719879485508,0.15049678,3439.5,3439.4,16.771491]
[1719879485704,0.15049678,3439.5,3439.4,17.495491]
[1719879489336,0.14580155,3439.5,3439.4,22.025263]
[1719879489514,0.14580155,3439.5,3439.4,17.495491]
[1719879489759,7.16328412,3440.0,3439.9,11.11512]
[1719879489896,7.16328412,3440.0,3439.9,13.241351]
[1719879490097,7.30934458,3440.0,3439.9,13.241351]
[1719879491002,0.14606046,3440.0,3439.9,13.241351]
[1719879491542,7.16328412,3440.7,3440.4,2.90663]
[1719879491836,2.4269,3440.9,3440.4,2.90663]
[1719879492035,0.15834299,3440.8,3440.4,2.90663]
[1719879493228,0.15834299,3440.8,3440.5,2.90654]
[1719879495037,0.14610563,3440.7,3440.5,2.90654]
[1719879495204,2.4269,3440.9,3440.5,2.90654]
[1719879495408,0.15837207,3440.8,3440.5,2.90654]
[1719879495620,0.3044777,3440.8,3440.5,2.90654]
[1719879495933,0.15837207,3440.7,3440.5,2.90654]
[1719879496134,0.15837207,3440.7,3440.3,2.90666]
[1719879496349,0.15837207,3440.7,3440.2,2.90679]
[1719879496350,3.30080563,3440.6,3440.2,2.90679]
[1719879496508,3.30080563,3440.6,3439.6,3.0]
[1719879496509,0.724,3440.3,3439.6,3.0]
[1719879496717,0.15838923,3440.2,3439.6,5.90725]
[1719879496902,2.3401,3440.0,3439.6,5.9073]
[1719879497416,0.14608153,3439.9,3439.6,5.9073]
[1719879497897,0.14608153,3439.9,3439.6,3.0]
[1719879498106,1.48178068,3439.9,3439.6,3.0]
[1719879498740,0.75778068,3439.9,3439.6,3.0]
[1719879500198,0.14608153,3439.9,3439.6,3.0]
[1719879501216,0.15837213,3439.8,3439.6,3.0]
[1719879501601,0.14578656,3439.7,3439.6,3.0]
[1719879502128,2.3401,3440.0,3439.6,3.0]
[1719879502438,0.1583754,3439.9,3439.6,3.0]
[1719879502647,0.30416196,3439.9,3439.6,3.0]
[1719879502800,0.1583754,3439.8,3439.6,3.0]
[1719879503231,0.14578656,3439.7,3439.6,3.0]
[1719879503430,5.24709,3440.0,3439.6,3.0]
[1719879503739,0.15837524,3439.9,3439.6,3.0]
[1719879504145,0.14578656,3439.8,3439.6,3.0]
[1719879504554,0.15836212,3439.7,3439.6,3.0]
[1719879504736,0.15836212,3439.7,3439.2,0.724]
[1719879504737,0.15836212,3439.7,3439.2,3.724]
[1719879504910,2.4384,3439.6,3438.9,2.90787]
[1719879505108,0.15836212,3439.5,3439.0,3.63181]
[1719879505507,0.14578656,3439.4,3438.8,5.90796]
[1719879505737,0.15834807,3439.3,3438.8,3.0]
[1719879505963,0.14569926,3439.2,3438.8,3.0]
[1719879506243,0.15834488,3439.1,3438.8,3.0]
[1719879506440,0.14569926,3439.1,3438.8,3.0]
[1719879506783,0.14569926,3439.0,3438.8,3.0]
[1719879507154,2.90749,3439.4,3438.8,3.0]
[1719879507475,0.30404811,3439.3,3438.8,3.0]
[1719879507692,0.14569926,3439.3,3438.8,3.0]
[1719879507989,0.14569926,3439.3,3438.8,3.724]
[1719879508307,0.14569926,3439.3,3439.0,0.724]
[1719879508579,5.66683187,3439.6,3439.0,0.724]
[1719879508888,0.14560892,3439.2,3439.0,0.724]
[1719879509041,6.16683187,3439.6,3439.0,0.724]
[1719879509240,0.14560892,3439.1,3439.0,0.724]
[1719879509477,2.90741,3439.5,3439.0,0.724]
[1719879509680,0.14560892,3439.1,3439.0,0.724]
[1719879509848,2.9384,3439.6,3439.2,2.90761]
[1719879510059,0.15835852,3439.5,3439.3,0.724]
[1719879510368,2.4384,3439.6,3439.3,0.724]
[1719879510684,0.15835933,3439.5,3439.0,2.90782]
[1719879510899,2.4384,3439.6,3439.3,0.724]
[1719879511055,3.68927441,3439.6,3439.3,0.724]
[1719879514073,7.09659441,3439.6,3439.3,0.724]
[1719879514381,2.2903,3439.3,3438.8,3.0]
[1719879514547,2.2903,3439.3,3439.1,0.724]
[1719879514744,2.2903,3439.3,3438.8,3.0]
[1719879514952,0.1583406,3439.2,3438.3,5.90833]
[1719879515194,0.1583406,3439.2,3438.7,0.724]
[1719879515349,3.5660006,3439.2,3438.7,0.724]
[1719879515553,4.32040099,3439.2,3438.7,0.724]
[1719879516635,4.32040099,3439.2,3438.5,2.90824]
[1719879516786,4.32040099,3439.2,3438.8,0.724]
[1719879518760,4.32040099,3439.2,3438.5,2.90824]
[1719879518928,4.32040099,3439.2,3438.9,0.724]
[1719879519137,1.41274099,3439.2,3438.9,0.724]
[1719879519346,0.5,3439.2,3439.1,0.724]
[1719879519525,0.5,3439.2,3438.6,2.90813]
[1719879519728,0.5,3439.2,3439.0,0.724]
[1719879520362,3.40767,3439.2,3439.0,0.724]
[1719879521243,3.40767,3439.2,3438.8,0.724]
[1719879521822,2.90767,3439.2,3438.8,0.724]
[1719879522660,2.6539293,3439.3,3438.8,0.724]
[1719879522862,5.5615593,3439.3,3438.8,0.724]
[1719879524340,5.5615593,3439.3,3439.0,0.724]
[1719879525131,0.1453379,3439.2,3438.8,0.724]
[1719879525561,5.5615593,3439.3,3438.8,0.724]
[1719879525764,0.1453379,3439.1,3438.8,0.724]
[1719879526037,5.19793,3439.3,3438.8,0.724]
[1719879526262,0.1453379,3439.0,3438.8,0.724]
[1719879526570,5.19793,3439.3,3438.8,0.724]
[1719879526751,0.1453379,3438.9,3438.8,0.724]
[1719879527074,0.14532887,3438.9,3438.8,0.724]
[1719879527368,5.19793,3439.3,3438.8,0.724]
[1719879527556,0.14532887,3438.9,3438.8,0.724]
[1719879527767,5.19793,3439.3,3438.8,0.724]
[1719879528377,0.14532887,3439.2,3438.8,0.724]
[1719879528761,5.19793,3439.3,3438.8,0.724]
[1719879528943,0.14532887,3439.1,3438.8,0.724]
[1719879529149,5.19793,3439.3,3438.8,0.724]
[1719879529357,0.14532887,3439.0,3438.8,0.724]
[1719879529559,5.19793,3439.3,3438.8,0.724]